[Event "*** Titled Tuesday 3|2 Blitz"]
[Site "Chess.com"]
[Date "2016.01.05"]
[Round "3"]
[White "Matibar"]
[Black "pKiLz5Rn9b"]
[Result "1/2-1/2"]
[WhiteElo "2392"]
[BlackElo "2351"]
[TimeControl "180+2"]
[EndTime "11:38:54 PST"]
[Termination "Game drawn - insufficient material"]

1. e4 {[%clk 0:03:01.9]} 1... e6 {[%clk 0:03:01.3]} 2. d4 {[%clk 0:02:59.1]}
2... d5 {[%clk 0:03:01.8]} 3. Nc3 {[%clk 0:03:01]} 3... Nf6 {[%clk 0:03:02.1]}
4. Bg5 {[%clk 0:03:00.3]} 4... Be7 {[%clk 0:03:03.1]} 5. e5 {[%clk 0:02:58]}
5... Nfd7 {[%clk 0:03:04.1]} 6. Bxe7 {[%clk 0:02:59.9]} 6... Qxe7 {[%clk
0:03:06]} 7. Qg4 {[%clk 0:02:53.7]} 7... O-O {[%clk 0:03:06.6]} 8. Nf3 {[%clk
0:02:51.7]} 8... c5 {[%clk 0:03:06.4]} 9. Nb5 {[%clk 0:02:48.5]} 9... Nc6 {[%clk
0:02:59.8]} 10. O-O-O {[%clk 0:02:44.2]} 10... f5 {[%clk 0:02:58.6]} 11. Qf4
{[%clk 0:02:40.1]} 11... cxd4 {[%clk 0:02:59.7]} 12. Nbxd4 {[%clk 0:02:40.5]}
12... Nc5 {[%clk 0:02:54.7]} 13. g4 {[%clk 0:02:08.1]} 13... fxg4 {[%clk
0:02:36]} 14. Qxg4 {[%clk 0:02:07.7]} 14... Ne4 {[%clk 0:02:37.5]} 15. Rg1
{[%clk 0:01:48.3]} 15... Nxf2 {[%clk 0:02:26.4]} 16. Qh5 {[%clk 0:01:49.2]}
16... Qf7 {[%clk 0:02:06.3]} 17. Qxf7+ {[%clk 0:01:39.6]} 17... Rxf7 {[%clk
0:02:07.6]} 18. Rd2 {[%clk 0:01:32.7]} 18... Ne4 {[%clk 0:02:06]} 19. Rdg2
{[%clk 0:01:33.4]} 19... Nxd4 {[%clk 0:02:06.6]} 20. Nxd4 {[%clk 0:01:33.7]}
20... Bd7 {[%clk 0:02:06.9]} 21. Bd3 {[%clk 0:01:32.9]} 21... Nc5 {[%clk
0:02:06.9]} 22. Be2 {[%clk 0:01:30.2]} 22... Raf8 {[%clk 0:02:05.7]} 23. Kd2
{[%clk 0:01:30.6]} 23... g6 {[%clk 0:01:32.3]} 24. c3 {[%clk 0:01:31.5]} 24...
Rf4 {[%clk 0:01:26.4]} 25. Rg4 {[%clk 0:01:23.1]} 25... Rxg4 {[%clk 0:01:22.5]}
26. Rxg4 {[%clk 0:01:24.1]} 26... Rf2 {[%clk 0:01:19.3]} 27. h4 {[%clk
0:01:25.6]} 27... Rh2 {[%clk 0:01:19.1]} 28. Rf4 {[%clk 0:01:25.1]} 28... Ne4+
{[%clk 0:01:16.1]} 29. Ke3 {[%clk 0:01:19.9]} 29... Ng3 {[%clk 0:01:11.3]} 30.
c4 {[%clk 0:01:02.8]} 30... Nxe2 {[%clk 0:00:59.4]} 31. Nxe2 {[%clk 0:01:03.6]}
31... dxc4 {[%clk 0:01:00.9]} 32. Nc3 {[%clk 0:00:55.6]} 32... Bc6 {[%clk
0:00:56.9]} 33. Rxc4 {[%clk 0:00:55.3]} 33... Rxb2 {[%clk 0:00:51.6]} 34. Rf4
{[%clk 0:00:56]} 34... Rc2 {[%clk 0:00:36.6]} 35. Kd3 {[%clk 0:00:56.9]} 35...
Rh2 {[%clk 0:00:37.7]} 36. Kd4 {[%clk 0:00:56.9]} 36... Kg7 {[%clk 0:00:38]} 37.
Kc5 {[%clk 0:00:50.7]} 37... Rc2 {[%clk 0:00:38.4]} 38. Kd4 {[%clk 0:00:38]}
38... Rd2+ {[%clk 0:00:34.8]} 39. Ke3 {[%clk 0:00:37.9]} 39... Rh2 {[%clk
0:00:32.2]} 40. Kd4 {[%clk 0:00:36.2]} 40... h6 {[%clk 0:00:33.6]} 41. Rg4
{[%clk 0:00:35.7]} 41... Rg2 {[%clk 0:00:23.3]} 42. Rf4 {[%clk 0:00:34.4]} 42...
b6 {[%clk 0:00:14.5]} 43. Rf6 {[%clk 0:00:30.3]} 43... Rg4+ {[%clk 0:00:15.2]}
44. Ke3 {[%clk 0:00:28.5]} 44... Bd7 {[%clk 0:00:12.6]} 45. Ne4 {[%clk 0:00:29]}
45... Rxh4 {[%clk 0:00:13]} 46. Nd6 {[%clk 0:00:30]} 46... Rh3+ {[%clk
0:00:07.2]} 47. Kf2 {[%clk 0:00:30.9]} 47... Bc6 {[%clk 0:00:07]} 48. Rxe6
{[%clk 0:00:28.1]} 48... Rf3+ {[%clk 0:00:08.2]} 49. Ke2 {[%clk 0:00:28.1]}
49... Ra3 {[%clk 0:00:05.5]} 50. Re7+ {[%clk 0:00:26.6]} 50... Kf8 {[%clk
0:00:06.8]} 51. Rf7+ {[%clk 0:00:24.1]} 51... Kg8 {[%clk 0:00:07.9]} 52. Rf6
{[%clk 0:00:24.8]} 52... Rxa2+ {[%clk 0:00:08.8]} 53. Ke3 {[%clk 0:00:25.6]}
53... Ra3+ {[%clk 0:00:05.7]} 54. Kd4 {[%clk 0:00:26.7]} 54... Ra4+ {[%clk
0:00:07.2]} 55. Kc3 {[%clk 0:00:27.7]} 55... Kg7 {[%clk 0:00:07.9]} 56. Rf7+
{[%clk 0:00:28.1]} 56... Kg8 {[%clk 0:00:09.5]} 57. Rf6 {[%clk 0:00:23]} 57...
g5 {[%clk 0:00:06.9]} 58. Nf5 {[%clk 0:00:20]} 58... Bd7 {[%clk 0:00:04.3]} 59.
e6 {[%clk 0:00:14.8]} 59... Bxe6 {[%clk 0:00:04.3]} 60. Rxe6 {[%clk 0:00:16.7]}
60... g4 {[%clk 0:00:05.7]} 61. Rxh6 {[%clk 0:00:16.8]} 61... Kf7 {[%clk
0:00:06.3]} 62. Kd3 {[%clk 0:00:16.9]} 62... Rf4 {[%clk 0:00:05.3]} 63. Ne3
{[%clk 0:00:16.2]} 63... Kg7 {[%clk 0:00:05.3]} 64. Rh1 {[%clk 0:00:12.8]} 64...
Kg6 {[%clk 0:00:06.3]} 65. Rh8 {[%clk 0:00:13.4]} 65... a5 {[%clk 0:00:07.3]}
66. Rg8+ {[%clk 0:00:14.3]} 66... Kh5 {[%clk 0:00:08.9]} 67. Rb8 {[%clk
0:00:15.1]} 67... Rf6 {[%clk 0:00:07.8]} 68. Ke4 {[%clk 0:00:15.2]} 68... Re6+
{[%clk 0:00:08.3]} 69. Kf4 {[%clk 0:00:16]} 69... g3 {[%clk 0:00:06.1]} 70. Nf5
{[%clk 0:00:12.4]} 70... Kg6 {[%clk 0:00:05.7]} 71. Rg8+ {[%clk 0:00:11.9]}
71... Kf6 {[%clk 0:00:04.2]} 72. Rxg3 {[%clk 0:00:12.8]} 72... Rc6 {[%clk
0:00:05.1]} 73. Ke4 {[%clk 0:00:12.4]} 73... Re6+ {[%clk 0:00:05.1]} 74. Kf4
{[%clk 0:00:13.1]} 74... Rc6 {[%clk 0:00:06.6]} 75. Ne3 {[%clk 0:00:12.8]} 75...
Rc5 {[%clk 0:00:06.6]} 76. Ke4 {[%clk 0:00:13.3]} 76... a4 {[%clk 0:00:05.9]}
77. Nd5+ {[%clk 0:00:13.8]} 77... Ke6 {[%clk 0:00:05.8]} 78. Rg6+ {[%clk
0:00:14.6]} 78... Kf7 {[%clk 0:00:06.1]} 79. Rxb6 {[%clk 0:00:14.9]} 79... Ra5
{[%clk 0:00:07.4]} 80. Ke5 {[%clk 0:00:11.6]} 80... a3 {[%clk 0:00:07.5]} 81.
Rb7+ {[%clk 0:00:12.5]} 81... Kg6 {[%clk 0:00:08.5]} 82. Rb1 {[%clk 0:00:13.7]}
82... Kg5 {[%clk 0:00:07.2]} 83. Ra1 {[%clk 0:00:13.7]} 83... Kg4 {[%clk
0:00:07.8]} 84. Ke4 {[%clk 0:00:14.6]} 84... Ra4+ {[%clk 0:00:07.6]} 85. Kd3
{[%clk 0:00:15.2]} 85... Kf3 {[%clk 0:00:07.7]} 86. Nc3 {[%clk 0:00:15.7]} 86...
Ra8 {[%clk 0:00:08.9]} 87. Rf1+ {[%clk 0:00:16.4]} 87... Kg2 {[%clk 0:00:10.1]}
88. Ra1 {[%clk 0:00:16.3]} 88... Kf2 {[%clk 0:00:11.6]} 89. Kc2 {[%clk
0:00:18.2]} 89... Ke3 {[%clk 0:00:12]} 90. Kb3 {[%clk 0:00:19.3]} 90... Rb8+
{[%clk 0:00:11.3]} 91. Ka2 {[%clk 0:00:20.3]} 91... Kd3 {[%clk 0:00:10.7]} 92.
Na4 {[%clk 0:00:20.1]} 92... Kc2 {[%clk 0:00:09.2]} 93. Rh1 {[%clk 0:00:20.2]}
93... Rd8 {[%clk 0:00:08.5]} 94. Kxa3 {[%clk 0:00:19.9]} 94... Rd3+ {[%clk
0:00:09.3]} 95. Ka2 {[%clk 0:00:21.1]} 95... Rd4 {[%clk 0:00:08.6]} 96. Nb2
{[%clk 0:00:21.5]} 96... Rd8 {[%clk 0:00:06.3]} 97. Rh2+ {[%clk 0:00:22.5]}
97... Kc3 {[%clk 0:00:07.7]} 98. Kb1 {[%clk 0:00:22.2]} 98... Rg8 {[%clk
0:00:08.1]} 99. Rc2+ {[%clk 0:00:22.3]} 99... Kb3 {[%clk 0:00:09.6]} 100. Rc1
{[%clk 0:00:21.8]} 100... Rg2 {[%clk 0:00:10.1]} 101. Nd1 {[%clk 0:00:22.9]}
101... Rd2 {[%clk 0:00:10.1]} 102. Rc3+ {[%clk 0:00:22.1]} 102... Kb4 {[%clk
0:00:11.6]} 103. Rc1 {[%clk 0:00:23]} 103... Kb3 {[%clk 0:00:13]} 104. Rc3+
{[%clk 0:00:23.9]} 104... Kb4 {[%clk 0:00:14.2]} 105. Kc1 {[%clk 0:00:24.6]}
105... Rxd1+ {[%clk 0:00:15.5]} 106. Kxd1 {[%clk 0:00:26.5]} 106... Kxc3 {[%clk
0:00:17.1]} 1/2-1/2

[Event "*** Titled Tuesday 3|2 Blitz"]
[Site "Chess.com"]
[Date "2016.01.05"]
[Round "3"]
[White "Keranke"]
[Black "Lupul_Cenusiu"]
[Result "1/2-1/2"]
[WhiteElo "2605"]
[BlackElo "2379"]
[TimeControl "180+2"]
[EndTime "11:39:12 PST"]
[Termination "Game drawn by agreement"]

1. d4 {[%clk 0:02:53.3]} 1... Nf6 {[%clk 0:02:59]} 2. Nf3 {[%clk 0:02:53.2]}
2... d6 {[%clk 0:03:00.2]} 3. Bg5 {[%clk 0:02:54.3]} 3... Nbd7 {[%clk
0:03:00.6]} 4. Nbd2 {[%clk 0:02:55]} 4... g6 {[%clk 0:03:00.1]} 5. e3 {[%clk
0:02:53.6]} 5... Bg7 {[%clk 0:03:00.7]} 6. h3 {[%clk 0:02:55]} 6... c5 {[%clk
0:03:01.3]} 7. c3 {[%clk 0:02:56]} 7... O-O {[%clk 0:03:00.6]} 8. Be2 {[%clk
0:02:55.9]} 8... b6 {[%clk 0:03:00.9]} 9. a4 {[%clk 0:02:56.4]} 9... a6 {[%clk
0:02:58.2]} 10. O-O {[%clk 0:02:57.1]} 10... Bb7 {[%clk 0:02:59.6]} 11. Re1
{[%clk 0:02:54.3]} 11... Re8 {[%clk 0:02:57]} 12. Qb3 {[%clk 0:02:54.7]} 12...
Qc7 {[%clk 0:02:54.7]} 13. Bc4 {[%clk 0:02:51.6]} 13... d5 {[%clk 0:02:49.6]}
14. Bf1 {[%clk 0:02:49.7]} 14... e6 {[%clk 0:02:39]} 15. Bf4 {[%clk 0:02:46.5]}
15... Qd8 {[%clk 0:02:37.5]} 16. Rad1 {[%clk 0:02:31.2]} 16... c4 {[%clk
0:02:35.8]} 17. Qa2 {[%clk 0:02:30.8]} 17... b5 {[%clk 0:02:35.4]} 18. Ne5
{[%clk 0:02:16]} 18... Nxe5 {[%clk 0:02:17.3]} 19. Bxe5 {[%clk 0:02:17.9]} 19...
Nd7 {[%clk 0:02:13]} 20. Bxg7 {[%clk 0:02:17.6]} 20... Kxg7 {[%clk 0:02:14.3]}
21. e4 {[%clk 0:02:19.1]} 21... dxe4 {[%clk 0:02:06.6]} 22. Nxe4 {[%clk
0:02:21]} 22... Bxe4 {[%clk 0:02:07.4]} 23. Rxe4 {[%clk 0:02:22.9]} 23... Nb6
{[%clk 0:02:08.6]} 24. axb5 {[%clk 0:02:13.1]} 24... axb5 {[%clk 0:02:09.6]} 25.
Qb1 {[%clk 0:02:14.8]} 25... Nd5 {[%clk 0:02:10.6]} 26. h4 {[%clk 0:02:10.1]}
26... h5 {[%clk 0:02:07.4]} 27. g3 {[%clk 0:02:09.8]} 27... Ra7 {[%clk
0:02:04.3]} 28. Re5 {[%clk 0:02:07.7]} 28... Qd7 {[%clk 0:01:53.4]} 29. Bg2
{[%clk 0:02:03.6]} 29... Nf6 {[%clk 0:01:51.3]} 30. Rde1 {[%clk 0:01:59.3]}
30... Rd8 {[%clk 0:01:50.2]} 31. Rc5 {[%clk 0:01:56.9]} 31... Ra6 {[%clk
0:01:48.3]} 32. Ree5 {[%clk 0:01:54.8]} 32... Ng4 {[%clk 0:01:48.7]} 33. Re1
{[%clk 0:01:50.5]} 33... Nf6 {[%clk 0:01:41.3]} 34. b3 {[%clk 0:01:51.4]} 34...
Ra3 {[%clk 0:01:35.5]} 35. bxc4 {[%clk 0:01:42.6]} 35... Rxc3 {[%clk 0:01:35.9]}
36. cxb5 {[%clk 0:01:39.3]} 36... Qxd4 {[%clk 0:01:36.2]} 37. Rxc3 {[%clk
0:01:40.3]} 37... Qxc3 {[%clk 0:01:36.9]} 38. b6 {[%clk 0:01:35.4]} 38... Rb8
{[%clk 0:01:37.2]} 39. b7 {[%clk 0:01:35.6]} 39... Nd5 {[%clk 0:01:37.6]} 40.
Rc1 {[%clk 0:01:10.6]} 40... Rxb7 {[%clk 0:01:35.5]} 41. Qc2 {[%clk 0:01:00.3]}
41... Qxc2 {[%clk 0:01:33.1]} 42. Rxc2 {[%clk 0:01:02.2]} 42... Rb1+ {[%clk
0:01:33.8]} 43. Kh2 {[%clk 0:01:03]} 43... Nf6 {[%clk 0:01:35]} 44. Bf3 {[%clk
0:01:03.4]} 44... Re1 {[%clk 0:01:34.6]} 45. Kg2 {[%clk 0:01:04.5]} 45... e5
{[%clk 0:01:36]} 46. Be2 {[%clk 0:01:03.9]} 46... e4 {[%clk 0:01:35]} 47. Rd2
{[%clk 0:00:53.3]} 47... Rc1 {[%clk 0:01:30.7]} 48. Rd4 {[%clk 0:00:44.9]} 48...
Rc2 {[%clk 0:01:27.8]} 49. Kf1 {[%clk 0:00:45.7]} 49... Rc3 {[%clk 0:01:19.1]}
50. Kg2 {[%clk 0:00:25.9]} 50... Kf8 {[%clk 0:01:14]} 51. Ra4 {[%clk 0:00:21.2]}
51... Rc2 {[%clk 0:01:00.6]} 52. Kf1 {[%clk 0:00:21.1]} 52... Rc1+ {[%clk
0:00:58.5]} 53. Kg2 {[%clk 0:00:22.4]} 53... Rc5 {[%clk 0:00:56.7]} 54. Bc4
{[%clk 0:00:19.9]} 54... Rf5 {[%clk 0:00:56]} 55. Be2 {[%clk 0:00:17.9]} 55...
Rd5 {[%clk 0:00:53.5]} 56. Bc4 {[%clk 0:00:18.8]} 56... Rd4 {[%clk 0:00:54.8]}
57. Ra8+ {[%clk 0:00:19.8]} 57... Kg7 {[%clk 0:00:55.8]} 58. Rc8 {[%clk
0:00:20.8]} 58... Nd7 {[%clk 0:00:52.3]} 59. Rc7 {[%clk 0:00:21.6]} 59... Ne5
{[%clk 0:00:53.3]} 60. Be2 {[%clk 0:00:22]} 60... Rd2 {[%clk 0:00:53.3]} 61. Kf1
{[%clk 0:00:23.3]} 61... Nf3 {[%clk 0:00:49.1]} 62. Rc3 {[%clk 0:00:19.6]} 62...
Nd4 {[%clk 0:00:47.9]} 63. Bc4 {[%clk 0:00:18.1]} 63... Rd1+ {[%clk 0:00:48.6]}
64. Kg2 {[%clk 0:00:18.6]} 64... Nf3 {[%clk 0:00:49.7]} 65. Be2 {[%clk
0:00:17.8]} 65... Rg1+ {[%clk 0:00:48.7]} 66. Kh3 {[%clk 0:00:19.4]} 66... Nd4
{[%clk 0:00:49.6]} 67. Bc4 {[%clk 0:00:16.2]} 67... Re1 {[%clk 0:00:46.8]} 68.
Kg2 {[%clk 0:00:15.5]} 68... f5 {[%clk 0:00:46.4]} 69. Ra3 {[%clk 0:00:14.6]}
69... Nf3 {[%clk 0:00:46.2]} 70. Ra7+ {[%clk 0:00:13.6]} 70... Kf6 {[%clk
0:00:47.1]} 71. Ra6+ {[%clk 0:00:15]} 71... Ke5 {[%clk 0:00:48.3]} 72. Rxg6
{[%clk 0:00:15]} 72... Rg1+ {[%clk 0:00:46.7]} 73. Kh3 {[%clk 0:00:16.5]} 73...
Rc1 {[%clk 0:00:46.6]} 74. Bf7 {[%clk 0:00:15.8]} 74... Rh1+ {[%clk 0:00:37.7]}
75. Kg2 {[%clk 0:00:16.9]} 75... Rh2+ {[%clk 0:00:33.7]} 76. Kf1 {[%clk
0:00:17.9]} 76... f4 {[%clk 0:00:33]} 77. Re6+ {[%clk 0:00:16.4]} 77... Kf5
{[%clk 0:00:34.1]} 78. gxf4 {[%clk 0:00:17.4]} 78... Kxf4 {[%clk 0:00:34.2]} 79.
Bxh5 {[%clk 0:00:16.3]} 79... Rh1+ {[%clk 0:00:33.7]} 80. Kg2 {[%clk 0:00:17.8]}
80... Rh2+ {[%clk 0:00:31.8]} 81. Kf1 {[%clk 0:00:19.2]} 81... Rxh4 {[%clk
0:00:31.4]} 82. Bxf3 {[%clk 0:00:19.8]} 82... exf3 {[%clk 0:00:31.5]} 83. Kg1
{[%clk 0:00:15.6]} 83... Rg4+ {[%clk 0:00:31.8]} 84. Kf1 {[%clk 0:00:16.1]}
84... Rg8 {[%clk 0:00:30]} 85. Ra6 {[%clk 0:00:14.7]} 85... Re8 {[%clk
0:00:27.6]} 86. Ra4+ {[%clk 0:00:15.4]} 86... Re4 {[%clk 0:00:27.6]} 87. Ra8
{[%clk 0:00:13.8]} 87... Rb4 {[%clk 0:00:26]} 88. Kg1 {[%clk 0:00:10.9]} 88...
Rb1+ {[%clk 0:00:24.2]} 89. Kh2 {[%clk 0:00:11.1]} 89... Rf1 {[%clk 0:00:25.3]}
90. Ra4+ {[%clk 0:00:10.2]} 90... Kf5 {[%clk 0:00:25.3]} 91. Kg3 {[%clk
0:00:12.1]} 91... Rb1 {[%clk 0:00:26.3]} 92. Kxf3 {[%clk 0:00:11.7]} 92... Rb3+
{[%clk 0:00:27.4]} 93. Kg2 {[%clk 0:00:13.3]} 93... Rc3 {[%clk 0:00:28.7]} 94.
f3 {[%clk 0:00:13.5]} 94... Rc1 {[%clk 0:00:28.1]} 95. Kg3 {[%clk 0:00:13.7]}
95... Rg1+ {[%clk 0:00:29.1]} 96. Kf2 {[%clk 0:00:15.2]} 96... Rb1 {[%clk
0:00:30.1]} 97. Ra8 {[%clk 0:00:15.1]} 97... Kf4 {[%clk 0:00:30.5]} 98. Rf8+
{[%clk 0:00:16.1]} 98... Kg5 {[%clk 0:00:31.5]} 99. Ke3 {[%clk 0:00:17.4]} 99...
Rb3+ {[%clk 0:00:31.9]} 100. Kf2 {[%clk 0:00:17]} 100... Rb1 {[%clk 0:00:32.4]}
101. Re8 {[%clk 0:00:18.2]} 101... Kf4 {[%clk 0:00:32.5]} 102. Re4+ {[%clk
0:00:18.8]} 102... Kf5 {[%clk 0:00:33.7]} 103. Rd4 {[%clk 0:00:19.6]} 103... Ra1
{[%clk 0:00:34.7]} 104. Rd2 {[%clk 0:00:19.6]} 104... Rb1 {[%clk 0:00:35.3]}
105. Kg3 {[%clk 0:00:18]} 105... Rg1+ {[%clk 0:00:36]} 1/2-1/2

[Event "*** Titled Tuesday 3|2 Blitz"]
[Site "Chess.com"]
[Date "2016.01.05"]
[Round "4"]
[White "alturas_pacificas"]
[Black "chess960now"]
[Result "1-0"]
[WhiteElo "2094"]
[BlackElo "1970"]
[TimeControl "180+2"]
[EndTime "11:42:14 PST"]
[Termination "alturas_pacificas won by resignation"]

1. d4 {[%clk 0:03:01.9]} 1... d5 {[%clk 0:03:00.3]} 2. Bf4 {[%clk 0:03:01.9]}
2... Nf6 {[%clk 0:03:00.8]} 3. e3 {[%clk 0:03:00.6]} 3... c5 {[%clk 0:03:01.4]}
4. c3 {[%clk 0:02:52.4]} 4... Nc6 {[%clk 0:03:02.1]} 5. Nd2 {[%clk 0:02:53.1]}
5... Bf5 {[%clk 0:02:50.3]} 6. Ngf3 {[%clk 0:02:48.6]} 6... e6 {[%clk
0:02:46.5]} 7. Qb3 {[%clk 0:02:42.5]} 7... Qb6 {[%clk 0:02:45.9]} 8. Be2 {[%clk
0:02:35.4]} 8... c4 {[%clk 0:02:44.1]} 9. Qxb6 {[%clk 0:02:35.9]} 9... axb6
{[%clk 0:02:45.1]} 10. a3 {[%clk 0:02:37.4]} 10... b5 {[%clk 0:02:43.7]} 11. Rc1
{[%clk 0:02:38.4]} 11... b4 {[%clk 0:02:30.7]} 12. cxb4 {[%clk 0:02:36.9]} 12...
b5 {[%clk 0:02:23.8]} 13. h3 {[%clk 0:02:33.3]} 13... h6 {[%clk 0:02:24.9]} 14.
O-O {[%clk 0:02:34.2]} 14... Be7 {[%clk 0:02:25.9]} 15. Nb1 {[%clk 0:02:18]}
15... O-O {[%clk 0:02:22.5]} 16. Nc3 {[%clk 0:02:19.3]} 16... Rfb8 {[%clk
0:02:21.9]} 17. Bxb8 {[%clk 0:02:18.9]} 1-0

[Event "*** Titled Tuesday 3|2 Blitz"]
[Site "Chess.com"]
[Date "2016.01.05"]
[Round "4"]
[White "Gabrielian_Artur"]
[Black "Iball95"]
[Result "1-0"]
[WhiteElo "2474"]
[BlackElo "2392"]
[TimeControl "180+2"]
[EndTime "11:42:45 PST"]
[Termination "Gabrielian_Artur won by resignation"]

1. e4 {[%clk 0:03:01.9]} 1... e5 {[%clk 0:03:00.2]} 2. Nf3 {[%clk 0:03:01.9]}
2... Nc6 {[%clk 0:03:01.6]} 3. Bc4 {[%clk 0:03:03]} 3... Bc5 {[%clk 0:03:01.1]}
4. d3 {[%clk 0:03:03.8]} 4... Nf6 {[%clk 0:03:01.1]} 5. Bg5 {[%clk 0:03:03.5]}
5... d6 {[%clk 0:02:59.7]} 6. c3 {[%clk 0:03:04.1]} 6... h6 {[%clk 0:02:58.4]}
7. Bh4 {[%clk 0:03:04.9]} 7... g5 {[%clk 0:02:57.3]} 8. Bg3 {[%clk 0:03:06]}
8... a6 {[%clk 0:02:49.8]} 9. b4 {[%clk 0:03:05.9]} 9... Ba7 {[%clk 0:02:50]}
10. Qb3 {[%clk 0:03:04.4]} 10... Qe7 {[%clk 0:02:48.6]} 11. Nbd2 {[%clk
0:03:05.2]} 11... Nh5 {[%clk 0:02:48.6]} 12. a4 {[%clk 0:03:04]} 12... Be6
{[%clk 0:02:44.1]} 13. a5 {[%clk 0:02:57.7]} 13... Nd8 {[%clk 0:02:40.5]} 14.
O-O {[%clk 0:02:55.6]} 14... c6 {[%clk 0:02:39]} 15. d4 {[%clk 0:02:52.3]} 15...
f6 {[%clk 0:02:20.2]} 16. Kh1 {[%clk 0:02:41.6]} 16... Kf7 {[%clk 0:02:16.7]}
17. Rad1 {[%clk 0:02:38]} 17... Nf4 {[%clk 0:02:12.4]} 18. Bxf4 {[%clk
0:02:35.8]} 18... gxf4 {[%clk 0:02:14.3]} 19. Nh4 {[%clk 0:02:32.3]} 19... Kf8
{[%clk 0:01:54.3]} 20. Ng6+ {[%clk 0:02:32.8]} 1-0

[Event "*** Titled Tuesday 3|2 Blitz"]
[Site "Chess.com"]
[Date "2016.01.05"]
[Round "4"]
[White "AndroQueen"]
[Black "chorejason"]
[Result "1-0"]
[WhiteElo "2453"]
[BlackElo "1884"]
[TimeControl "180+2"]
[EndTime "11:43:01 PST"]
[Termination "AndroQueen won by resignation"]

1. e4 {[%clk 0:03:01.9]} 1... c5 {[%clk 0:03:00]} 2. Nf3 {[%clk 0:03:03.2]} 2...
d6 {[%clk 0:03:01.4]} 3. d4 {[%clk 0:03:04.4]} 3... cxd4 {[%clk 0:03:02.8]} 4.
Nxd4 {[%clk 0:03:06.3]} 4... Nf6 {[%clk 0:03:04.3]} 5. Nc3 {[%clk 0:03:07.9]}
5... g6 {[%clk 0:03:05.8]} 6. Be3 {[%clk 0:03:07.1]} 6... Bg7 {[%clk 0:03:07.1]}
7. h3 {[%clk 0:03:08.3]} 7... O-O {[%clk 0:03:07.2]} 8. Qd2 {[%clk 0:03:09.5]}
8... Nc6 {[%clk 0:03:08.4]} 9. O-O-O {[%clk 0:03:09.6]} 9... d5 {[%clk
0:03:02.4]} 10. exd5 {[%clk 0:03:03.5]} 10... Nxd5 {[%clk 0:03:02.8]} 11. Nxc6
{[%clk 0:03:04.8]} 11... bxc6 {[%clk 0:03:02.4]} 12. Nxd5 {[%clk 0:03:04]} 12...
cxd5 {[%clk 0:03:03.1]} 13. Qxd5 {[%clk 0:03:05.5]} 13... Qc7 {[%clk 0:02:53.9]}
14. Qxa8 {[%clk 0:03:00.8]} 14... Bf5 {[%clk 0:02:54.6]} 15. Qxf8+ {[%clk
0:03:01.8]} 15... Bxf8 {[%clk 0:02:49.4]} 16. Bd3 {[%clk 0:03:02.7]} 16... e5
{[%clk 0:02:24.6]} 17. Bxf5 {[%clk 0:02:39.3]} 17... gxf5 {[%clk 0:02:24.1]} 18.
g3 {[%clk 0:02:38.5]} 18... Qa5 {[%clk 0:02:23.3]} 19. Kb1 {[%clk 0:02:36]}
19... Bc5 {[%clk 0:02:06.5]} 20. Rd5 {[%clk 0:02:17.9]} 1-0

[Event "*** Titled Tuesday 3|2 Blitz"]
[Site "Chess.com"]
[Date "2016.01.05"]
[Round "4"]
[White "Rating-Schmating"]
[Black "RitchieBlackmore"]
[Result "0-1"]
[WhiteElo "2124"]
[BlackElo "2417"]
[TimeControl "180+2"]
[EndTime "11:43:51 PST"]
[Termination "RitchieBlackmore won by resignation"]

1. e4 {[%clk 0:03:01.9]} 1... c5 {[%clk 0:02:59.1]} 2. Nf3 {[%clk 0:03:02.8]}
2... g6 {[%clk 0:03:00.5]} 3. d4 {[%clk 0:03:03.6]} 3... cxd4 {[%clk 0:03:02]}
4. Nxd4 {[%clk 0:03:04.8]} 4... Bg7 {[%clk 0:03:02.8]} 5. Nc3 {[%clk 0:03:05.6]}
5... d6 {[%clk 0:03:02.8]} 6. Be3 {[%clk 0:03:06.6]} 6... Nf6 {[%clk 0:03:01.9]}
7. Be2 {[%clk 0:03:07.2]} 7... O-O {[%clk 0:02:58.9]} 8. O-O {[%clk 0:03:08.1]}
8... Nc6 {[%clk 0:02:59.8]} 9. Qd2 {[%clk 0:03:04.7]} 9... Ng4 {[%clk
0:02:56.7]} 10. Nxc6 {[%clk 0:03:02.3]} 10... bxc6 {[%clk 0:02:57]} 11. Bf4
{[%clk 0:02:53]} 11... Rb8 {[%clk 0:02:54.8]} 12. Rab1 {[%clk 0:02:51.5]} 12...
c5 {[%clk 0:02:56.3]} 13. h3 {[%clk 0:02:51.1]} 13... Ne5 {[%clk 0:02:54.5]} 14.
Be3 {[%clk 0:02:49.3]} 14... Nc6 {[%clk 0:02:49.9]} 15. Rfd1 {[%clk 0:02:36.9]}
15... Nd4 {[%clk 0:02:48.8]} 16. Bd3 {[%clk 0:02:29.9]} 16... Bxh3 {[%clk
0:02:45.8]} 17. Bxd4 {[%clk 0:02:24.6]} 17... cxd4 {[%clk 0:02:41.5]} 18. Ne2
{[%clk 0:02:20.2]} 18... Bg4 {[%clk 0:02:32.7]} 19. f3 {[%clk 0:02:14]} 19...
Bd7 {[%clk 0:02:29.6]} 20. Bc4 {[%clk 0:02:11.4]} 20... Qb6 {[%clk 0:02:24.1]}
21. Kf1 {[%clk 0:02:08.1]} 21... Qc5 {[%clk 0:02:22.2]} 22. Bb3 {[%clk
0:02:07.4]} 22... e5 {[%clk 0:02:21.8]} 23. c3 {[%clk 0:02:05.5]} 23... Bb5
{[%clk 0:02:19.7]} 24. cxd4 {[%clk 0:02:01.8]} 24... exd4 {[%clk 0:02:20.9]} 25.
Rbc1 {[%clk 0:01:57.9]} 25... Qh5 {[%clk 0:02:21.6]} 26. Kg1 {[%clk 0:01:51.8]}
26... d3 {[%clk 0:02:21.1]} 27. Ng3 {[%clk 0:01:48.8]} 27... Bd4+ {[%clk
0:02:19.6]} 28. Kf1 {[%clk 0:01:47.4]} 28... Qh2 {[%clk 0:02:20.4]} 0-1

[Event "*** Titled Tuesday 3|2 Blitz"]
[Site "Chess.com"]
[Date "2016.01.05"]
[Round "4"]
[White "maciek_92"]
[Black "Jahonas"]
[Result "1-0"]
[WhiteElo "2317"]
[BlackElo "2121"]
[TimeControl "180+2"]
[EndTime "11:44:10 PST"]
[Termination "maciek_92 won by checkmate"]

1. e4 {[%clk 0:02:59.2]} 1... c6 {[%clk 0:03:00.7]} 2. d4 {[%clk 0:02:59.6]}
2... d5 {[%clk 0:03:01.9]} 3. Nc3 {[%clk 0:03:00.9]} 3... dxe4 {[%clk
0:03:02.9]} 4. Nxe4 {[%clk 0:03:01.9]} 4... Nf6 {[%clk 0:03:04.6]} 5. Nxf6+
{[%clk 0:03:01.9]} 5... exf6 {[%clk 0:03:05.3]} 6. c3 {[%clk 0:03:03.4]} 6...
Bd6 {[%clk 0:03:06.2]} 7. Bd3 {[%clk 0:03:05]} 7... Be6 {[%clk 0:03:02.5]} 8.
Qc2 {[%clk 0:03:01]} 8... g6 {[%clk 0:03:02.1]} 9. Ne2 {[%clk 0:02:57.6]} 9...
Nd7 {[%clk 0:03:02.7]} 10. Nf4 {[%clk 0:02:55.4]} 10... Nf8 {[%clk 0:02:59.7]}
11. O-O {[%clk 0:02:47.1]} 11... Qc7 {[%clk 0:02:59.3]} 12. g3 {[%clk
0:02:47.5]} 12... O-O-O {[%clk 0:02:58.9]} 13. b4 {[%clk 0:02:47]} 13... h5
{[%clk 0:02:44.9]} 14. a4 {[%clk 0:02:34.4]} 14... Kb8 {[%clk 0:02:42]} 15. b5
{[%clk 0:02:34.3]} 15... g5 {[%clk 0:02:36.9]} 16. Nxe6 {[%clk 0:02:32.3]} 16...
Nxe6 {[%clk 0:02:37.4]} 17. bxc6 {[%clk 0:02:33.7]} 17... Qxc6 {[%clk
0:02:33.6]} 18. Be4 {[%clk 0:02:33.9]} 18... Qc7 {[%clk 0:02:27.6]} 19. Rb1
{[%clk 0:02:33.4]} 19... b6 {[%clk 0:02:20.7]} 20. a5 {[%clk 0:02:34.8]} 20...
h4 {[%clk 0:01:41.7]} 21. axb6 {[%clk 0:02:33.1]} 21... axb6 {[%clk 0:01:40.9]}
22. Qa4 {[%clk 0:02:33.3]} 22... Qa7 {[%clk 0:01:28.2]} 23. Qc6 {[%clk
0:02:33.6]} 23... Bc7 {[%clk 0:01:08.5]} 24. Ra1 {[%clk 0:02:30.6]} 24... Rd6
{[%clk 0:01:03.6]} 25. Qa8+ {[%clk 0:02:29.5]} 25... Qxa8 {[%clk 0:01:02.7]} 26.
Rxa8# {[%clk 0:02:31.4]} 1-0